bitfinex-derivatives/quotes_ETHF0:USTF0_20250329
["timestamp","ask_amount","ask_price","bid_price","bid_amount"]
[1743217202110,9.55131,1895.0,1894.7,1.05607]
[1743217202307,3.2078,1894.8,1894.6,1.05611]
[1743217202503,4.9986,1894.7,1894.6,1.05611]
[1743217203413,1.431,1895.0,1894.6,9.9111971]
[1743217203601,3.643,1895.1,1895.0,1.05591]
[1743217203908,5.1066,1895.1,1895.0,1.05591]
[1743217204500,0.6845,1895.3,1895.2,1.0558]
[1743217204714,4.3255,1895.3,1895.2,1.0558]
[1743217205007,3.21571431,1895.4,1895.3,1.05574]
[1743217207307,2.1477,1895.6,1895.3,7.83211753]
[1743217207308,3.2078,1895.6,1895.3,7.83211753]
[1743217207508,3.2078,1895.6,1895.5,1.05563]
[1743217208106,3.2078,1895.6,1895.5,1.76083]
[1743217209209,3.2078,1895.6,1895.5,1.05563]
[1743217209414,5.7078,1895.6,1894.6,3.2078]
[1743217209615,3.2078,1895.2,1895.0,1.05588]
[1743217209811,6.497,1895.1,1894.7,1.3636]
[1743217210016,6.497,1895.1,1895.0,1.05591]
[1743217210704,1.05561,1895.6,1895.0,1.05591]
[1743217210705,3.2078,1895.6,1895.5,1.05562]
[1743217210914,8.2949,1895.6,1895.5,1.05562]
[1743217211112,6.8628,1895.6,1895.5,1.05562]
[1743217211411,3.2078,1895.6,1895.5,1.05562]
[1743217211611,0.00513433,1895.7,1895.6,1.05558]
[1743217211612,4.33e-06,1895.7,1895.6,1.05558]
[1743217211809,4.33e-06,1895.7,1895.6,3.84848]
[1743217212005,4.33e-06,1895.7,1895.6,11.35796168]
[1743217212606,4.33e-06,1895.7,1895.6,14.56576168]
[1743217212811,4.33e-06,1895.7,1895.6,17.06576168]
[1743217215510,3.656,1896.2,1896.1,1.0553]
[1743217215912,4.5805,1896.3,1896.2,1.05524]
[1743217218223,3.2078,1896.3,1896.2,1.05524]
[1743217218515,1.79534,1896.3,1896.2,1.05524]
[1743217218725,3.644,1896.6,1896.5,1.05508]
[1743217219218,5.0641,1896.6,1896.5,1.05508]
[1743217219415,3.644,1896.6,1896.5,1.05508]
[1743217219621,6.8508,1897.0,1896.9,1.05485]
[1743217219916,21.88618281,1897.2,1897.0,1.0548]
[1743217220319,24.00787659,1897.1,1896.8,0.00791431]
[1743217220523,3.2078,1896.9,1896.8,0.00791431]
[1743217220717,6.8598,1896.9,1896.8,0.00791431]
[1743217221720,10.41469,1896.9,1896.5,1.05507]
[1743217222017,3.2078,1896.6,1896.5,1.05507]
[1743217222223,6.8618,1896.6,1896.5,1.05507]
[1743217222418,3.654,1896.6,1896.5,1.05507]
[1743217223525,5.0086,1896.6,1896.5,1.05507]
[1743217223722,3.654,1896.6,1896.5,1.05507]
[1743217224622,5.02351431,1896.7,1896.4,0.00791431]
[1743217224828,1.3478,1896.5,1896.4,1.06304431]
[1743217225625,3.2078,1896.6,1896.5,1.05508]
[1743217225928,3.2078,1896.6,1896.4,6.77561433]
[1743217226121,1.3478,1896.5,1896.4,0.00791431]
[1743217226524,1.3478,1896.5,1896.4,1.06304431]
[1743217226720,5.0418,1896.5,1896.4,1.06304431]
[1743217227124,1.3478,1896.5,1896.4,1.06304431]
[1743217227532,3.695,1896.6,1896.5,1.05508]
[1743217227832,1.41281431,1896.7,1896.6,1.05502]
[1743217228526,0.00791431,1896.7,1896.6,1.05502]
[1743217229115,1.41281431,1896.7,1896.6,1.05502]
[1743217231629,4.31e-06,1896.7,1896.6,7.77216336]
[1743217231935,4.31e-06,1896.7,1896.6,10.94596336]
[1743217232324,4.31e-06,1896.7,1896.6,11.33421223]
[1743217233827,4.31e-06,1896.7,1896.6,7.77216336]
[1743217234029,4.31e-06,1896.7,1896.6,1.05502]
[1743217234226,4.31e-06,1896.7,1896.6,7.83488188]
[1743217234432,4.31e-06,1896.7,1896.6,6.77986188]
[1743217234630,2.07260431,1896.7,1896.4,0.00791431]
[1743217234929,2.07260431,1896.7,1896.6,1.05502]
[1743217236020,2.07260431,1896.7,1896.5,2.48525]
[1743217236329,2.07260431,1896.7,1896.6,1.05502]
[1743217236534,0.72910431,1896.7,1896.6,1.05502]
[1743217237034,0.72910431,1896.7,1896.5,2.48526]
[1743217237238,1.39600431,1896.7,1896.6,1.05502]
[1743217238928,1.39600431,1896.7,1896.3,5.84571]
[1743217238929,1.05508,1896.5,1896.1,1.05528]
[1743217239129,3.2078,1896.3,1896.1,1.05527]
[1743217239438,0.7297,1896.2,1896.1,1.05527]
[1743217239831,1.4427,1896.2,1896.1,1.05527]
[1743217242733,1.4427,1896.2,1896.0,0.00791431]
[1743217242932,6.8848,1896.1,1896.0,0.00791431]
[1743217244534,7.9401,1896.1,1896.0,0.00791431]
[1743217244936,6.8848,1896.1,1896.0,0.00791431]
[1743217245739,6.8848,1896.1,1896.0,1.06326431]
[1743217246039,6.8848,1896.1,1896.0,0.00791431]
[1743217247436,10.4401,1896.1,1896.0,0.00791431]
[1743217247642,1.05548,1895.8,1895.6,1.05556]
[1743217247839,8.3128,1895.7,1895.6,1.05556]
[1743217248535,8.3138,1895.7,1895.6,1.05556]
[1743217249345,8.3138,1895.7,1895.6,2.50216]
[1743217250636,9.7422,1895.7,1895.6,2.50216]
[1743217251845,9.7352,1895.7,1895.6,2.50216]
[1743217252245,9.7342,1895.7,1895.6,2.50216]
[1743217252441,6.0762,1895.7,1895.6,2.50216]
[1743217252642,3.2078,1896.3,1895.7,2.63881]
[1743217252843,6.8688,1896.3,1896.2,1.05524]
[1743217253246,5.9981,1896.5,1896.4,1.05513]
[1743217253543,4.31e-06,1896.7,1896.6,1.05502]
[1743217253544,3.20780431,1896.7,1896.6,1.05502]
[1743217254446,3.20780431,1896.7,1896.6,2.41922]
[1743217254839,4.31e-06,1896.7,1896.6,9.25878581]
[1743217255546,4.31e-06,1896.7,1896.6,1.3642]
[1743217255755,4.31e-06,1896.7,1896.6,2.41922]
[1743217258550,1.44970431,1896.7,1896.6,2.41922]
[1743217258751,4.31e-06,1896.7,1896.6,2.41922]
[1743217266559,4.31e-06,1896.7,1896.6,1.3642]
[1743217266754,4.31e-06,1896.7,1896.5,0.00791431]
[1743217266949,6.8358,1896.6,1896.5,1.06299431]
[1743217267155,6.8358,1896.6,1896.5,0.00791431]
[1743217267348,8.2593,1896.6,1896.5,1.06299431]
[1743217267654,8.2593,1896.6,1896.5,2.42919431]
[1743217267848,4.31e-06,1896.7,1896.6,1.05502]
[1743217268054,3.63500431,1896.7,1896.6,1.05502]
[1743217268551,5.05850431,1896.7,1896.6,1.05502]
[1743217269155,3.63500431,1896.7,1896.6,1.05502]
[1743217269852,5.09290431,1896.7,1896.6,1.05502]
[1743217270858,3.63500431,1896.7,1896.6,1.05502]
[1743217271460,8.64788431,1896.7,1896.5,0.00791431]
[1743217271763,6.39402,1896.6,1896.3,1.05518]
[1743217271953,2.1515,1896.5,1896.3,1.05518]
[1743217272154,5.0979,1896.4,1896.3,1.05518]
[1743217272955,59.5347,1896.4,1895.4,3.2078]
[1743217273157,3.2078,1895.7,1895.1,16.79374445]
[1743217273360,3.2078,1895.3,1895.1,18.72767445]
[1743217273652,5.113,1895.2,1895.1,17.30462929]
[1743217274162,5.113,1895.2,1895.1,16.24879929]
[1743217274361,5.113,1895.2,1895.1,17.30464929]
[1743217274557,5.113,1895.2,1895.1,1.05585]
[1743217275055,3.21571431,1895.3,1895.1,1.05585]
[1743217275056,0.00791431,1895.3,1895.2,1.0558]
[1743217275358,3.67291431,1895.3,1895.2,1.0558]
[1743217275765,3.2078,1895.5,1895.4,1.05569]
[1743217275951,3.666,1895.7,1895.6,1.05558]
[1743217276761,3.2078,1895.8,1895.7,1.05552]
[1743217277062,1.434,1896.1,1896.0,1.05535]
[1743217277260,3.664,1896.2,1896.1,1.0553]
[1743217277461,0.00791431,1896.2,1896.1,1.0553]
[1743217278063,0.00791431,1896.2,1896.1,2.5021]
[1743217279362,4.99858431,1896.2,1896.0,0.00791431]
[1743217279569,7.5793,1896.1,1896.0,0.00791431]
[1743217280564,1.44331431,1896.2,1896.1,1.0553]
[1743217280758,5.10831431,1896.2,1896.1,1.0553]
[1743217285167,6.16357431,1896.2,1896.0,0.00791431]
[1743217285370,1.05537,1896.0,1895.7,1.05549]
[1743217285565,8.9686,1895.9,1895.8,1.05547]
[1743217285972,8.9686,1895.9,1895.7,1.05548]
[1743217286269,1.4094,1895.8,1895.7,1.05552]
[1743217291872,6.8718,1895.9,1895.8,1.05547]
[1743217292667,9.3718,1895.9,1895.6,0.00791431]
[1743217292860,1.05565,1895.5,1895.3,1.4165]
[1743217293066,8.2839,1895.4,1895.3,2.47224]
[1743217294157,3.66,1895.4,1895.3,2.47224]
[1743217294466,3.659,1895.7,1895.6,1.05558]
[1743217294667,3.2078,1895.8,1895.5,1.4509]
[1743217294859,6.8668,1895.8,1895.7,1.05552]
[1743217295171,3.2078,1895.8,1895.7,1.05552]
[1743217295376,3.2078,1895.8,1895.7,2.50642]
[1743217295564,4.6772,1896.1,1896.0,1.05535]
[1743217295871,8.3342,1896.1,1896.0,1.05535]
[1743217296472,0.00791431,1896.2,1896.1,1.0553]
[1743217296671,0.715,1896.6,1896.5,1.05508]
[1743217296867,3.666,1896.8,1896.7,1.05496]
[1743217297064,3.673,1896.8,1896.7,1.05496]
[1743217297476,3.2078,1896.9,1896.8,1.05491]
[1743217297768,6.8798,1896.9,1896.8,1.05491]
[1743217298165,3.67791431,1897.0,1896.9,1.05485]
[1743217298769,0.00791431,1897.0,1896.9,1.05485]
[1743217301789,1.39101431,1897.0,1896.9,1.05485]
[1743217303579,0.00791431,1897.0,1896.9,1.05485]
[1743217303973,0.00791431,1897.0,1896.8,1.05491]
[1743217304181,3.2078,1896.9,1896.7,0.00791431]
[1743217304373,5.0941,1896.8,1896.7,2.47164431]
[1743217304977,5.0941,1896.8,1896.7,1.41671431]
[1743217305681,5.0941,1896.8,1896.7,2.47167431]
[1743217309380,7.5941,1896.8,1896.7,0.00791431]
[1743217309582,5.0941,1896.8,1896.7,0.00791431]
[1743217309882,5.0941,1896.8,1896.7,1.06287431]
[1743217310581,7.5941,1896.8,1896.3,2.1605]
[1743217310786,7.5941,1896.8,1896.4,1.05513]
[1743217310787,3.2078,1896.5,1896.4,1.05513]
[1743217310979,6.8948,1896.5,1896.4,1.05513]
[1743217312480,6.8948,1896.5,1896.4,2.52813]
[1743217313088,6.8948,1896.5,1896.3,1.06308431]
[1743217313287,1.3601,1896.4,1896.3,1.06308431]
[1743217314888,1.3601,1896.4,1896.3,0.00791431]
[1743217315084,2.7821,1896.4,1896.3,0.00791431]
[1743217315885,3.83723,1896.4,1896.3,0.00791431]
[1743217316085,54.0111,1896.4,1895.5,5.69399914]
[1743217316288,3.2078,1896.0,1895.7,1.4179]
[1743217316492,5.0866,1895.9,1895.8,1.05547]
[1743217316797,5.0866,1895.9,1895.6,1.05554]
[1743217316990,3.2078,1895.8,1895.6,2.47344]
[1743217317194,3.2078,1895.8,1895.7,1.4179]
[1743217317587,3.2078,1895.8,1895.7,2.47342]
[1743217319086,0.00791431,1895.9,1895.7,2.47342]
[1743217319283,3.2078,1896.3,1895.8,1.77577]
[1743217319486,6.9168,1896.3,1896.2,1.05524]
[1743217321293,3.709,1896.3,1896.2,1.05524]
[1743217323188,6.9168,1896.3,1896.0,1.4272]
[1743217323393,8.654,1896.3,1896.0,1.4272]
[1743217323594,0.7125,1896.2,1896.0,1.4272]
[1743217324986,0.7125,1896.2,1896.0,2.48255]
[1743217325296,4.26313,1896.1,1895.7,1.05548]
[1743217325483,3.2078,1895.9,1895.8,1.05547]
[1743217325689,6.9278,1895.9,1895.8,1.05547]
[1743217325991,0.682,1896.3,1896.0,1.05535]
[1743217325992,3.2078,1896.1,1896.0,1.05535]
[1743217326193,3.8898,1896.3,1896.2,1.05524]
[1743217326494,6.9288,1896.3,1896.2,1.05524]
[1743217326685,3.72,1896.3,1896.2,1.05524]
[1743217327196,3.72,1896.3,1896.1,1.4458]
[1743217327392,3.72,1896.3,1896.1,2.50109]
[1743217327589,3.72,1896.3,1896.2,1.3481]
[1743217328195,3.72,1896.3,1896.2,2.40334]
[1743217328791,3.72,1896.3,1896.0,0.6702]
[1743217328996,4.77523,1896.3,1895.9,4.26319]
[1743217329294,3.72,1896.3,1896.1,1.05529]
[1743217329688,3.72,1896.3,1896.2,1.05524]
[1743217329999,0.00791431,1896.4,1896.3,1.05519]
[1743217330293,3.73091431,1896.4,1895.7,6.53025]
[1743217330492,3.2078,1896.3,1896.2,1.05524]
[1743217330798,4.5578,1896.3,1896.2,1.05524]
[1743217331186,3.2078,1896.3,1896.2,1.05524]
[1743217331889,4.5578,1896.3,1896.2,1.05524]
[1743217332089,8.2838,1896.3,1896.2,1.05524]
[1743217332283,8.2838,1896.3,1896.2,2.41814]
[1743217332690,8.2838,1896.3,1896.2,1.3629]
[1743217333298,8.2838,1896.3,1896.1,1.78818]
[1743217333490,1.35,1896.2,1896.1,1.78818]
[1743217334399,3.85,1896.2,1895.7,1.05549]
[1743217334598,3.2078,1895.8,1895.6,1.06083193]
[1743217334797,3.729,1895.7,1895.6,2.50093193]
[1743217335096,5.1567,1895.7,1895.6,1.44537193]
[1743217335402,5.1567,1895.7,1895.6,2.50095193]
[1743217335700,1.05559,1895.6,1895.3,1.05572]
[1743217335901,4.6355,1895.5,1895.4,1.05569]
[1743217336197,4.6355,1895.5,1895.3,2.4958]
[1743217336399,3.735,1895.4,1895.3,2.4958]
[1743217336598,5.0652,1895.4,1895.3,2.4958]
[1743217339003,3.735,1895.4,1895.3,2.49584]
[1743217341099,3.735,1895.4,1895.2,0.00791431]
[1743217341300,4.6484,1895.3,1895.1,1.05585]
[1743217341601,5.70418,1895.3,1895.0,2.45335915]
[1743217341805,3.2078,1895.1,1895.0,1.39746915]
[1743217342106,6.9248,1895.1,1895.0,2.45337915]
[1743217342306,8.3654,1895.1,1895.0,1.39746915]
[1743217342803,8.3654,1895.1,1895.0,2.45337915]
[1743217344101,9.42127,1895.1,1894.9,1.05594]
[1743217344404,1.3617,1895.0,1894.9,1.05597]
[1743217345001,1.3617,1895.0,1894.8,1.05599]
[1743217345205,4.26377,1894.9,1894.7,2.39246]
[1743217345509,6.13274,1894.8,1894.5,1.05616]
[1743217345707,4.6678,1894.7,1894.6,1.05613]
[1743217346111,4.6678,1894.7,1894.5,1.05615]
[1743217346398,1.46,1894.6,1894.5,1.05615]
[1743217348102,1.05627,1894.4,1894.2,0.6824]
[1743217348304,1.05652,1893.9,1893.8,3.2078]
[1743217348521,6.9268,1893.9,1893.3,1.05682]
[1743217348804,6.9268,1893.9,1893.2,0.39813895]
[1743217348805,3.2078,1893.5,1893.2,0.39813895]
[1743217348998,3.2078,1893.3,1892.8,5.69399914]
[1743217349200,4.26486,1893.0,1892.7,16.46588564]
[1743217349398,4.26486,1893.0,1892.6,20.25107338]
[1743217349399,3.2078,1892.8,1892.6,20.25107338]
[1743217349600,1.05719,1892.7,1892.6,18.99367338]
[1743217349805,1.05731,1892.5,1892.4,24.35273294]
[1743217350001,56.82111,1892.5,1892.4,24.35273294]
[1743217350309,58.2638,1892.5,1892.2,32.73241639]
[1743217350512,3.2078,1892.3,1892.2,32.73241639]
[1743217350709,7.0528,1892.3,1892.2,32.73241639]
[1743217350901,3.846,1892.3,1892.2,11.62227]
[1743217351707,3.846,1892.3,1892.2,1.05747]
[1743217351908,3.851,1892.3,1892.2,10.5648]
[1743217352105,3.851,1892.3,1892.2,1.05747]
[1743217352298,7.0588,1892.3,1892.0,1.348]
[1743217352494,3.2078,1892.1,1892.0,1.348]
[1743217353509,7.0678,1892.1,1892.0,1.348]
[1743217353811,9.5678,1892.1,1892.0,1.348]
[1743217354009,7.0728,1892.1,1892.0,12.97038]
[1743217354409,7.0728,1892.1,1892.0,2.40558]
[1743217354609,3.873,1892.2,1892.1,1.05753]
[1743217354911,3.2078,1892.3,1892.2,1.05747]
[1743217355115,0.00791431,1892.6,1892.5,1.05731]
[1743217355309,3.88191431,1892.6,1892.5,1.05731]
[1743217355503,3.88191431,1892.6,1892.5,13.02481]
[1743217356408,0.00791431,1892.6,1892.5,1.4027]
[1743217356600,0.00791431,1892.6,1892.2,1.05747]
[1743217356601,4.94820431,1892.6,1892.2,1.05747]
[1743217356811,3.2078,1892.4,1891.9,3.2078]
[1743217357005,4.2653,1892.2,1892.0,1.4027]
[1743217357210,3.891,1892.1,1892.0,1.4027]
[1743217357407,4.94853,1892.1,1892.0,1.4027]
[1743217357614,3.891,1892.1,1892.0,1.4027]
[1743217357807,4.94853,1892.1,1892.0,1.4027]
[1743217358013,55.201,1892.1,1891.3,3.2078]
[1743217358312,3.2078,1892.0,1891.5,3.2078]
[1743217358615,4.26543,1892.0,1891.6,10.5648]
[1743217358810,52.701,1892.1,1891.1,1.3974]
[1743217358811,1.05776,1891.7,1891.3,1.05796]
[1743217359121,3.908,1891.6,1891.3,1.05794]
[1743217359418,3.908,1891.6,1891.4,1.05791]
[1743217359619,3.91591431,1891.6,1891.5,1.05786]
[1743217359811,3.91391431,1891.6,1891.5,11.62266]
[1743217360711,0.00791431,1891.6,1891.5,11.62266]
[1743217360915,3.908,1891.8,1891.7,1.05775]
[1743217361111,3.908,1891.8,1891.7,4.26555]
[1743217361321,3.908,1891.8,1891.7,14.83035]
[1743217361509,48.81,1892.1,1891.7,13.7726]
[1743217361711,3.905,1892.0,1891.9,4.26544]
[1743217362114,3.905,1892.0,1891.9,14.83024]
[1743217362718,3.905,1892.0,1891.9,10.5648]
[1743217363408,3.905,1892.0,1891.8,1.06557431]
[1743217363409,7.1128,1892.0,1891.8,0.00791431]
[1743217363612,6.36093,1892.0,1891.8,10.57271431]
[1743217363812,1.05764,1891.9,1891.8,10.57271431]
[1743217364007,5.3033,1892.0,1891.8,10.57271431]
[1743217364008,3.905,1892.0,1891.8,10.57271431]
[1743217364213,3.905,1892.0,1891.8,11.99831431]
[1743217364417,3.905,1892.0,1891.9,1.4256]
[1743217365823,3.905,1892.0,1891.9,2.48324]
[1743217366822,1.41901431,1892.1,1892.0,1.05758]
[1743217367017,3.88891431,1892.1,1892.0,2.47868]
[1743217367220,0.00791431,1892.1,1892.0,13.04348]
[1743217367520,3.88791431,1892.1,1892.0,13.04348]
[1743217368022,3.88791431,1892.1,1892.0,11.9859]
[1743217368919,3.88791431,1892.1,1892.0,13.04348]
[1743217369119,3.88791431,1892.1,1892.0,11.9859]
[1743217369425,3.88791431,1892.1,1892.0,13.04348]
[1743217369823,3.87691431,1892.1,1892.0,13.04348]
[1743217370326,3.87591431,1892.1,1892.0,16.25128]
[1743217370514,0.00791431,1892.1,1892.0,16.25128]
[1743217370714,3.867,1892.4,1892.3,1.05742]
[1743217370926,7.0858,1892.6,1892.5,1.05731]
[1743217371425,7.0858,1892.6,1892.5,11.62211]
[1743217371730,7.0858,1892.6,1892.5,10.5648]
[1743217371925,7.0858,1892.6,1892.5,11.62211]
[1743217372321,3.878,1892.6,1892.5,11.62211]
[1743217373227,1.05749,1892.2,1891.8,0.53671431]
[1743217373424,4.93353,1892.1,1891.9,1.0576]
[1743217373923,3.876,1892.1,1892.0,12.0266]
[1743217374126,4.93353,1892.1,1892.0,12.0266]
[1743217374324,4.93353,1892.1,1892.0,1.4618]
[1743217374828,6.35133,1892.1,1892.0,1.4618]
[1743217375328,1.0576,1892.0,1891.8,0.00791431]
[1743217375632,2.4754,1892.0,1891.8,1.46971431]
[1743217376129,1.05764,1891.9,1891.8,1.46971431]
[1743217376328,2.47542,1892.0,1891.8,2.52739431]
[1743217376529,2.47542,1892.0,1891.8,1.46971431]
[1743217376530,1.05764,1891.9,1891.8,1.46971431]
[1743217377426,3.2078,1892.0,1891.9,1.05764]
[1743217377728,7.0828,1892.0,1891.9,11.62244]
[1743217378124,7.0828,1892.0,1891.9,10.5648]
[1743217378426,7.0828,1892.0,1891.9,11.62244]
[1743217378832,3.875,1892.0,1891.9,14.83024]
[1743217379030,1.05743,1892.3,1892.1,1.05751]
[1743217379235,3.2078,1892.5,1892.1,1.05753]
[1743217379236,3.869,1892.2,1892.1,1.05753]
[1743217379534,3.87,1892.2,1892.1,11.62233]
[1743217379735,3.2078,1892.5,1892.1,11.62233]
[1743217379736,1.0574,1892.4,1892.1,11.62233]
[1743217379936,3.87,1892.3,1892.2,10.5648]
[1743217380537,3.87,1892.3,1892.2,11.62227]
[1743217381138,1.3536,1892.6,1892.2,10.5648]
[1743217381432,52.05871431,1892.7,1892.3,11.62217]
[1743217381433,4.91932,1892.5,1892.3,11.62217]
[1743217381634,4.91932,1892.5,1892.2,11.62224]
[1743217381830,4.91932,1892.5,1892.3,1.05741]
[1743217382031,4.91932,1892.5,1892.3,11.62221]
[1743217382235,4.91932,1892.5,1892.4,10.5648]
[1743217382434,3.862,1892.5,1892.4,10.5648]
[1743217382626,4.91931,1892.5,1892.4,10.5648]
[1743217382827,8.12711,1892.5,1892.4,10.5648]
[1743217383030,4.91931,1892.5,1892.4,10.5648]
[1743217383838,3.862,1892.5,1892.4,11.62216]
[1743217384139,4.91931,1892.5,1892.4,10.5648]
[1743217384840,3.862,1892.5,1892.4,11.62216]
[1743217385037,4.27292431,1892.7,1892.4,11.62216]
[1743217385337,3.847,1892.6,1892.5,11.62211]
[1743217385532,3.847,1892.6,1892.5,1.05731]
[1743217385836,3.847,1892.6,1892.5,11.62211]
[1743217386840,7.05471431,1892.7,1892.6,1.05725]
[1743217387135,3.84691431,1892.7,1892.6,11.62205]
[1743217388039,3.84691431,1892.7,1892.1,3.2078]
[1743217388232,3.2078,1892.6,1892.1,10.5648]
[1743217388430,4.2652,1892.4,1892.2,10.5648]
[1743217388636,3.841,1892.3,1892.2,11.62227]
[1743217388834,3.841,1892.3,1892.2,10.5648]
[1743217389035,4.89842,1892.3,1892.2,10.5648]
[1743217389339,3.841,1892.3,1892.2,10.5648]
[1743217389534,3.841,1892.3,1892.2,11.62227]
[1743217389735,3.841,1892.3,1892.2,10.5648]
[1743217389934,4.89842,1892.3,1892.2,10.5648]
[1743217390136,1.05753,1892.1,1891.8,0.00791431]
[1743217390332,3.834,1892.0,1891.9,11.62241]
[1743217390734,4.89158,1892.0,1891.9,11.8944]
[1743217390932,4.89158,1892.0,1891.9,1.3296]
[1743217391140,1.05764,1891.9,1891.8,0.00791431]
[1743217391440,2.46024,1891.9,1891.8,0.00791431]
[1743217392028,3.9026,1891.9,1891.4,3.2078]
[1743217392231,1.0578,1891.7,1891.5,12.0395]
[1743217392429,3.832,1891.6,1891.5,12.0395]
[1743217392634,3.832,1891.6,1891.5,2.53256]
[1743217392839,3.832,1891.6,1891.5,13.09736]
[1743217393340,3.83791431,1891.7,1891.6,1.05781]
[1743217393643,0.00791431,1891.7,1891.6,14.83041]
[1743217394144,48.845,1892.2,1891.6,14.83041]
[1743217394344,0.7225,1892.5,1891.6,14.83041]
[1743217394345,3.831,1892.1,1892.0,1.05758]
[1743217394640,3.832,1892.2,1892.1,11.62229]
[1743217394834,9.98917588,1892.2,1892.1,13.03649]
[1743217397342,0.00791431,1892.3,1892.2,1.05747]
[1743217397646,3.826,1892.9,1892.3,1.05742]
[1743217397838,3.826,1892.9,1892.8,1.05714]
[1743217398041,22.40978263,1892.7,1892.6,1.05725]
[1743217398339,21.31332263,1892.7,1892.6,14.82985]
[1743217398548,3.827,1893.3,1893.2,1.05691]
[1743217398741,5.2026,1893.3,1893.2,11.62170505]
[1743217399944,3.827,1893.3,1893.2,11.62170505]
[1743217400343,0.00791431,1893.4,1893.3,1.05686]
[1743217400535,0.00791431,1893.4,1893.3,14.82945505]
[1743217401041,154.48709027,1894.0,1893.4,9.09549505]
[1743217401238,3.822,1893.9,1893.7,4.26443]
[1743217401443,3.822,1893.9,1893.7,3.2078]
[1743217401444,11.98701105,1893.8,1893.7,3.2078]
[1743217401743,11.98701105,1893.8,1893.7,4.26444]
[1743217401947,11.98701105,1893.8,1893.7,13.35993505]
[1743217402149,11.98701105,1893.8,1893.7,22.81668001]
[1743217402541,2.891516,1893.8,1893.7,13.72118496]
[1743217402743,0.678916,1893.8,1893.7,13.72118496]
[1743217403352,13.99276054,1893.9,1893.8,1.05658]
[1743217403742,3.817,1894.6,1894.3,1.0563]
[1743217403743,6.07690381,1894.4,1894.3,1.0563]
[1743217404847,6.07690381,1894.4,1894.3,3.5563]
[1743217405750,4.84321381,1894.4,1894.3,10.28850927]
[1743217406046,4.09731381,1894.4,1894.3,10.28850927]
[1743217406651,0.00791431,1894.5,1894.4,1.05625]
[1743217406866,3.79996915,1894.7,1894.5,1.05617]
[1743217407241,3.79996915,1894.7,1894.6,4.26393]
[1743217407441,3.808,1895.0,1894.9,1.05597]
[1743217408050,3.808,1895.0,1894.8,0.00791431]
[1743217408237,5.162,1895.0,1894.8,3.21571431]
[1743217408443,5.162,1895.0,1894.9,1.05597]
[1743217409045,5.162,1895.0,1894.8,4.27171431]
[1743217409953,6.21794,1895.0,1894.6,3.2078]
[1743217410151,5.162,1895.0,1894.6,4.26393]
[1743217410747,5.162,1895.0,1894.7,1.05607]
[1743217410954,5.162,1895.0,1894.6,4.2639]
[1743217411255,5.162,1895.0,1894.7,0.00791431]
[1743217411454,5.162,1895.0,1894.8,1.05598]
[1743217411652,5.162,1895.0,1894.7,1.06396431]
[1743217411857,5.162,1895.0,1894.8,1.05602]
[1743217412155,5.162,1895.0,1894.7,1.06396431]
[1743217412352,6.21791,1895.0,1894.7,0.00791431]
[1743217412551,1.05601,1894.9,1894.6,3.2078]
[1743217412858,1.4252,1894.8,1894.6,3.2078]
[1743217413058,3.805,1894.7,1894.4,4.26403]
[1743217413354,1.4252,1894.6,1894.5,1.05619]
[1743217413750,4.26381,1894.9,1894.8,1.05602]
[1743217413751,3.2078,1894.9,1894.8,1.05602]
[1743217413951,3.8,1894.9,1894.6,3.2078]
[1743217414252,3.8,1894.9,1894.6,4.2639]
[1743217415057,3.795,1894.8,1894.7,1.05608]
[1743217417860,3.786,1894.8,1894.7,1.05608]
[1743217418856,3.786,1894.8,1894.6,4.2639]
[1743217419060,1.4696,1894.7,1894.6,3.2078]
[1743217419253,1.4696,1894.7,1894.4,0.00791431]
[1743217419458,3.8916,1894.6,1894.0,1.05643]
[1743217419662,4.26409,1894.4,1894.1,1.05641]
[1743217419861,1.4696,1894.3,1894.1,1.05641]
[1743217420061,3.785,1894.2,1894.0,1.05643]
[1743217420258,1.4696,1894.1,1893.9,1.0565]
[1743217420457,1.4696,1894.1,1894.0,1.05647]
[1743217420963,1.4696,1894.1,1894.0,2.46167]
[1743217422366,3.785,1894.2,1894.1,1.05641]
[1743217423553,5.2063,1894.4,1894.3,1.0563]
[1743217423955,5.2063,1894.4,1894.3,4.2641]
[1743217424265,1.4323,1894.4,1894.3,4.2641]
[1743217425362,1.4323,1894.4,1894.1,3.2078]
[1743217425566,1.4323,1894.4,1894.1,4.26418]
[1743217425865,1.4323,1894.4,1894.2,1.05635]
[1743217426061,1.4323,1894.4,1894.3,1.0563]
[1743217426862,1.4323,1894.4,1894.1,3.2078]
[1743217427065,2.48857,1894.4,1894.1,4.26418]
[1743217427570,1.05633,1894.3,1893.9,4.26432]
[1743217427768,5.199,1894.2,1893.9,4.26432]
[1743217427970,5.199,1894.2,1894.0,1.05647]
[1743217428267,5.199,1894.2,1893.8,0.00791431]
[1743217428268,8.4068,1894.2,1893.8,0.00791431]
[1743217428568,1.05641,1894.1,1893.8,0.00791431]
[1743217428765,1.43,1894.0,1893.8,0.00791431]
[1743217428964,3.769,1893.9,1893.8,0.00791431]
[1743217429370,3.769,1893.9,1893.8,1.06449431]
[1743217431055,3.769,1893.9,1893.8,0.00791431]
[1743217431262,1.05664,1893.7,1893.3,1.05681]
[1743217431463,5.2291,1893.6,1893.3,1.05681]
[1743217431660,5.2291,1893.6,1893.4,1.05679]
[1743217432258,5.2291,1893.6,1893.3,1.05683]
[1743217432468,5.2291,1893.6,1893.3,0.00791431]
[1743217432659,5.2291,1893.6,1893.3,1.06476431]
[1743217433666,5.2291,1893.6,1893.3,0.00791431]
[1743217433860,3.781,1893.5,1893.4,1.0568]